bitfinex-derivatives/quotes_BTCF0:USTF0_20240925
["timestamp","ask_amount","ask_price","bid_price","bid_amount"]
[1727249042191,0.080321,63836.0,63835.0,0.24943421]
[1727249045005,0.002,63836.0,63835.0,0.24943421]
[1727249045206,0.002,63836.0,63835.0,0.38943421]
[1727249045503,0.002,63836.0,63835.0,0.45168059]
[1727249046203,0.002,63836.0,63835.0,0.31168059]
[1727249046597,0.002,63836.0,63835.0,0.24943421]
[1727249046903,0.002,63836.0,63835.0,0.31203321]
[1727249048201,0.002,63836.0,63835.0,0.24943421]
[1727249048600,0.002,63836.0,63835.0,0.33493421]
[1727249056620,0.002,63836.0,63835.0,0.35941977]
[1727249058939,0.002,63836.0,63835.0,1.40489421]
[1727249059114,0.002,63836.0,63835.0,1.42937976]
[1727249059418,0.0037,63842.0,63841.0,0.078315]
[1727249059625,0.04671437,63843.0,63839.0,0.04691102]
[1727249059918,0.04671437,63843.0,63842.0,0.078314]
[1727249060217,0.04671437,63843.0,63842.0,0.2461313]
[1727249061309,0.04771437,63843.0,63842.0,0.2471313]
[1727249061535,0.001,63843.0,63842.0,0.2471313]
[1727249062324,0.001,63843.0,63842.0,0.2481313]
[1727249062815,0.219313,63843.0,63842.0,0.1698173]
[1727249063422,0.26602737,63843.0,63842.0,0.1698173]
[1727249064227,0.219313,63843.0,63842.0,0.1698173]
[1727249065023,0.26602737,63843.0,63842.0,0.1698173]
[1727249065225,0.219313,63843.0,63842.0,0.1698173]
[1727249067024,0.262313,63843.0,63842.0,0.1698173]
[1727249067529,0.079313,63843.0,63842.0,0.1698173]
[1727249069222,0.28159615,63843.0,63842.0,0.1698173]
[1727249070220,0.219313,63843.0,63842.0,0.1698173]
[1727249070933,0.28158577,63843.0,63842.0,0.1698173]
[1727249071318,0.219313,63843.0,63842.0,0.21672832]
[1727249072130,0.219313,63843.0,63842.0,0.1698173]
[1727249072633,0.079313,63843.0,63842.0,0.1698173]
[1727249076820,0.079313,63843.0,63842.0,0.2481313]
[1727249079634,0.001,63843.0,63842.0,0.2481313]
[1727249079929,0.001,63843.0,63842.0,0.1698173]
[1727249080131,0.001,63843.0,63842.0,0.21679896]
[1727249080636,0.079313,63843.0,63842.0,0.21679896]
[1727249083426,0.079313,63843.0,63842.0,0.1698173]
[1727249084128,0.15711261,63843.0,63842.0,0.1698173]
[1727249084337,0.15711261,63843.0,63842.0,0.21681249]
[1727249084630,0.079313,63843.0,63842.0,0.21681249]
[1727249085427,0.10470354,63843.0,63842.0,0.21681249]
[1727249085628,0.079313,63843.0,63842.0,0.21681249]
[1727249087335,0.1572384,63843.0,63842.0,0.1698173]
[1727249087833,0.1572384,63843.0,63842.0,0.002]
[1727249087834,0.79975583,63843.0,63842.0,0.002]
[1727249088033,0.79975583,63843.0,63842.0,0.00028937]
[1727249088936,0.26132959,63843.0,63842.0,0.00028937]
[1727249090137,0.35475097,63843.0,63842.0,0.00028937]
[1727249092035,1.33124959,63843.0,63842.0,0.00028937]
[1727249092423,1.39941886,63843.0,63842.0,0.00028937]
[1727249092742,1.39941886,63843.0,63842.0,4.268e-05]
[1727249094228,0.73124959,63843.0,63842.0,4.268e-05]
[1727249094728,0.73125309,63843.0,63842.0,4.268e-05]
[1727249095938,1.33125309,63843.0,63842.0,4.268e-05]
[1727249096143,0.26133309,63843.0,63842.0,4.268e-05]
[1727249099355,0.35460228,63843.0,63842.0,4.268e-05]
[1727249099746,1.07620228,63843.0,63842.0,4.268e-05]
[1727249101539,0.98293377,63843.0,63842.0,4.268e-05]
[1727249102441,2.14285377,63843.0,63842.0,4.268e-05]
[1727249102636,2.14285387,63843.0,63842.0,4.268e-05]
[1727249106346,1.54285387,63843.0,63842.0,4.268e-05]
[1727249107345,1.54285384,63843.0,63842.0,4.268e-05]
[1727249107747,1.07293384,63843.0,63842.0,4.268e-05]
[1727249111148,1.14104136,63843.0,63842.0,4.268e-05]
[1727249112250,1.14104477,63843.0,63842.0,4.268e-05]
[1727249113045,0.97273177,63843.0,63842.0,4.268e-05]
[1727249113244,0.91967764,63843.0,63842.0,4.268e-05]
[1727249113447,0.82630782,63843.0,63842.0,0.17737267]
[1727249116146,0.82630487,63843.0,63842.0,0.17737267]
[1727249116548,0.800913,63843.0,63842.0,0.17737267]
[1727249116754,0.82630485,63843.0,63842.0,0.17737267]
[1727249118756,0.10470485,63843.0,63842.0,0.17737267]
[1727249119083,0.46550485,63843.0,63842.0,0.17737267]
[1727249123468,0.440113,63843.0,63842.0,0.17737267]
[1727249123655,0.46550465,63843.0,63842.0,0.17737267]
[1727249124165,0.46550465,63843.0,63842.0,0.25568667]
[1727249124359,0.440113,63843.0,63842.0,0.25568667]
[1727249124560,0.51793477,63843.0,63842.0,0.25568667]
[1727249124955,0.440113,63843.0,63842.0,0.25568667]
[1727249125961,0.3618,63843.0,63842.0,0.25568667]
[1727249128470,0.4518,63843.0,63842.0,0.25568667]
[1727249130073,0.530113,63843.0,63842.0,0.17737267]
[1727249130376,0.530113,63843.0,63842.0,0.25568667]
[1727249133571,0.59234479,63843.0,63842.0,0.25568667]
[1727249135990,0.51403179,63843.0,63842.0,0.25568667]
[1727249137289,0.42403179,63843.0,63842.0,0.25568667]
[1727249137588,0.59234479,63843.0,63842.0,0.25568667]
[1727249139582,0.530113,63843.0,63842.0,0.25568667]
[1727249143694,0.530113,63843.0,63842.0,0.3026806]
[1727249143993,0.530113,63843.0,63842.0,0.25568667]
[1727249144292,0.530113,63843.0,63842.0,0.3026806]
[1727249146598,0.530113,63843.0,63842.0,0.2243666]
[1727249148688,0.608426,63843.0,63842.0,0.2243666]
[1727249148893,0.63381711,63843.0,63842.0,0.17737267]
[1727249152403,0.55550411,63843.0,63842.0,0.17737267]
[1727249156605,0.46550411,63843.0,63842.0,0.17737267]
[1727249158500,0.46550411,63843.0,63842.0,0.25568667]
[1727249160709,0.38719111,63843.0,63842.0,0.25568667]
[1727249161915,0.46550411,63843.0,63842.0,0.25568667]
[1727249162302,0.46550411,63843.0,63842.0,0.17737267]
[1727249163808,0.54381711,63843.0,63842.0,0.17737267]
[1727249164004,0.46550411,63843.0,63842.0,0.17737267]
[1727249170814,0.46550411,63843.0,63842.0,0.25568667]
[1727249173915,0.46550381,63843.0,63842.0,0.25568667]
[1727249174909,0.38719081,63843.0,63842.0,0.25568667]
[1727249175110,0.001,63843.0,63842.0,0.34568667]
[1727249175308,0.001,63843.0,63842.0,0.5013347]
[1727249175511,0.001,63843.0,63842.0,0.4113347]
[1727249176010,0.091,63843.0,63842.0,0.4113347]
[1727249176315,0.1534577,63843.0,63842.0,0.4113347]
[1727249176521,0.1534577,63843.0,63842.0,0.3647347]
[1727249176731,0.1544577,63843.0,63842.0,0.31919202]
[1727249177610,0.1544577,63843.0,63842.0,0.32019202]
[1727249178417,0.1544577,63843.0,63842.0,0.25764399]
[1727249180308,0.092,63843.0,63842.0,0.25764399]
[1727249182916,0.170313,63843.0,63842.0,0.25764399]
[1727249184020,0.080313,63843.0,63842.0,0.25764399]
[1727249188337,0.002,63843.0,63842.0,0.25764399]
[1727249188519,0.04876562,63843.0,63842.0,0.25764399]
[1727249190732,0.002,63843.0,63842.0,0.61844399]
[1727249195033,0.002,63843.0,63842.0,0.69675799]
[1727249197230,0.002,63843.0,63842.0,0.78675799]
[1727249198874,0.002,63843.0,63842.0,0.70844399]
[1727249201345,0.002,63843.0,63842.0,0.61844399]
[1727249201544,0.002,63843.0,63842.0,0.68105849]
[1727249205947,0.002,63843.0,63842.0,0.61844399]
[1727249206138,0.0644577,63843.0,63842.0,0.68108454]
[1727249206845,0.002,63843.0,63842.0,0.61844399]
[1727249207345,0.0644577,63843.0,63842.0,0.61844399]
[1727249208051,0.1427707,63843.0,63842.0,0.61844399]
[1727249209660,0.158626,63843.0,63842.0,0.60277185]
[1727249209848,0.158626,63843.0,63842.0,0.58711182]
[1727249210246,0.080313,63843.0,63842.0,0.54012999]
[1727249210853,0.46650245,63843.0,63842.0,0.17932999]
[1727249211250,0.46650486,63843.0,63842.0,0.17932999]
[1727249213462,0.441113,63843.0,63842.0,0.17932999]
[1727249214360,0.51902632,63843.0,63842.0,0.17932999]
[1727249217362,0.080313,63843.0,63842.0,0.17932999]
[1727249217663,0.441113,63843.0,63842.0,0.17932999]
[1727249219465,0.080313,63843.0,63842.0,0.17932999]
[1727249219659,0.441113,63843.0,63842.0,0.17932999]
[1727249221160,0.441113,63843.0,63842.0,0.25764399]
[1727249222469,0.3628,63843.0,63842.0,0.25764399]
[1727249223170,0.42510479,63843.0,63842.0,0.25764399]
[1727249223364,0.3628,63843.0,63842.0,0.25764399]
[1727249226067,0.42509188,63843.0,63842.0,0.25764399]
[1727249227461,0.3628,63843.0,63842.0,0.25764399]
[1727249233073,0.04872907,63843.0,63842.0,0.69675799]
[1727249233283,0.04872907,63843.0,63842.0,0.68102595]
[1727249233579,0.002,63843.0,63842.0,0.68102595]
[1727249239477,0.002,63843.0,63842.0,0.32022595]
[1727249239670,0.002,63843.0,63842.0,0.68102595]
[1727249240273,0.002,63843.0,63842.0,0.25764399]
[1727249240479,0.002,63843.0,63842.0,0.68102595]
[1727249240779,0.092,63843.0,63842.0,0.25764399]
[1727249240977,0.092,63843.0,63842.0,0.30457878]
[1727249241170,0.092,63843.0,63842.0,0.25764399]
[1727249242281,0.092,63843.0,63842.0,0.30457878]
[1727249242680,0.170313,63843.0,63842.0,0.30457878]
[1727249244080,0.170313,63843.0,63842.0,0.25764399]
[1727249244273,0.170313,63843.0,63842.0,0.30457878]
[1727249244676,0.23261843,63843.0,63842.0,0.17932999]
[1727249244876,0.170313,63843.0,63842.0,0.17932999]
[1727249248975,0.080313,63843.0,63842.0,0.25764399]
[1727249259182,0.080313,63843.0,63842.0,0.17932999]
[1727249262392,0.15818143,63843.0,63842.0,0.17932999]
[1727249264820,0.080313,63843.0,63842.0,0.17932999]
[1727249265294,0.080313,63843.0,63842.0,0.25764399]
[1727249266793,0.002,63843.0,63842.0,0.25764399]
[1727249266991,0.06429538,63843.0,63842.0,0.30457878]
[1727249268285,0.06430757,63843.0,63842.0,0.30457878]
[1727249268490,0.002,63843.0,63842.0,0.25764399]
[1727249273514,0.06433449,63843.0,63842.0,0.25764399]
[1727249273698,0.06433449,63843.0,63842.0,0.32022595]
[1727249276808,0.04873917,63843.0,63842.0,0.78675799]
[1727249276999,0.04873917,63843.0,63842.0,0.70844399]
[1727249277399,0.002,63843.0,63842.0,0.70844399]
[1727249281303,0.001,63843.0,63842.0,0.70744399]
[1727249281610,0.002,63843.0,63842.0,0.70844399]
[1727249282309,0.002,63843.0,63842.0,0.61844399]
[1727249285307,0.002,63843.0,63842.0,0.25764399]
[1727249285705,0.002,63843.0,63842.0,0.61844399]
[1727249289413,0.002,63843.0,63842.0,0.25764399]
[1727249289612,0.002,63843.0,63842.0,0.61844399]
[1727249291714,0.092,63843.0,63842.0,0.61844399]
[1727249292121,0.002,63843.0,63842.0,0.61844399]
[1727249292309,0.13873917,63843.0,63842.0,0.25764399]
[1727249292515,0.13873917,63843.0,63842.0,0.32023644]
[1727249292810,0.13873917,63843.0,63842.0,0.25764399]
[1727249293215,0.092,63843.0,63842.0,0.32023644]
[1727249294621,0.13871135,63843.0,63842.0,0.25764399]
[1727249296424,0.002,63843.0,63842.0,0.25764399]
[1727249317340,0.002,63843.0,63842.0,0.33587144]
[1727249317836,0.002,63843.0,63842.0,0.25764399]
[1727249318146,0.002,63843.0,63842.0,0.33587144]
[1727249320140,0.002,63843.0,63842.0,0.69667144]
[1727249320947,0.002,63843.0,63842.0,0.78667144]
[1727249321831,0.002,63843.0,63842.0,0.86327351]
[1727249326849,0.06433449,63843.0,63842.0,0.78667144]
[1727249328545,0.002,63843.0,63842.0,0.86323454]
[1727249331250,0.002,63843.0,63842.0,0.78500709]
[1727249334345,0.002,63843.0,63842.0,0.86334688]
[1727249334758,0.002,63843.0,63842.0,0.78500709]
[1727249335145,0.002,63843.0,63842.0,0.86334688]
[1727249339058,0.002,63843.0,63842.0,0.50254688]
[1727249339555,0.002,63843.0,63842.0,0.86334688]
[1727249340251,0.002,63843.0,63842.0,0.50254688]
[1727249340555,0.002,63843.0,63842.0,0.86336044]
[1727249342854,0.002,63843.0,63842.0,0.94167444]
[1727249343248,0.04676326,63849.0,63842.0,0.79781645]
[1727249343447,0.04676326,63849.0,63848.0,0.69130154]
[1727249343656,0.06233449,63851.0,63850.0,0.078304]
[1727249343849,0.15536843,63855.0,63853.0,0.0783]
[1727249343850,0.07786843,63854.0,63853.0,0.0783]
[1727249344051,0.15536843,63855.0,63853.0,0.09]
[1727249344260,0.0775,63855.0,63854.0,0.21994914]
[1727249344560,0.0775,63855.0,63854.0,0.04697753]
[1727249344762,0.0775,63855.0,63854.0,0.17297161]
[1727249344958,0.0775,63855.0,63854.0,0.29824827]
[1727249345853,0.0775,63855.0,63854.0,0.25227061]
[1727249346263,0.0775,63855.0,63854.0,0.29922829]
[1727249347052,0.0775,63855.0,63854.0,0.30022829]
[1727249347252,0.13978761,63855.0,63854.0,0.30022829]
[1727249347452,0.13978761,63855.0,63854.0,0.25327061]
[1727249347863,0.13978761,63855.0,63854.0,0.25227061]
[1727249348065,0.13978761,63855.0,63854.0,0.25327061]
[1727249349564,0.06228761,63855.0,63854.0,0.25327061]
[1727249350161,0.06228761,63856.0,63855.0,0.078298]
[1727249350360,0.07786843,63859.0,63858.0,0.078294]
[1727249350571,0.43866843,63860.0,63859.0,0.078293]
[1727249350868,0.43866843,63860.0,63859.0,0.24893989]
[1727249352066,0.07786843,63862.0,63860.0,0.078291]
[1727249352267,0.3608,63862.0,63861.0,0.168291]
[1727249352565,0.3608,63862.0,63861.0,0.33345368]
[1727249352868,0.3608,63862.0,63861.0,0.168291]
[1727249353063,0.3608,63862.0,63861.0,0.3321431]
[1727249353463,0.3608,63862.0,63861.0,0.3331431]
[1727249353956,0.3608,63862.0,63861.0,0.3341431]
[1727249355253,0.42303746,63862.0,63861.0,0.3341431]
[1727249355763,0.42303746,63862.0,63861.0,0.3331431]
[1727249355964,0.42303746,63862.0,63861.0,0.3341431]
[1727249356769,0.42303746,63862.0,63861.0,0.1658521]
[1727249357370,0.50132646,63862.0,63861.0,0.1658521]
[1727249358383,0.50132646,63862.0,63861.0,0.2441431]
[1727249360572,0.14052646,63862.0,63861.0,0.2441431]
[1727249360873,0.50132646,63862.0,63861.0,0.2441431]
[1727249361474,0.14052646,63862.0,63861.0,0.2441431]
[1727249361682,0.50132646,63862.0,63861.0,0.2441431]
[1727249362266,0.14052646,63862.0,63861.0,0.2441431]
[1727249362576,0.50132646,63862.0,63861.0,0.2441431]
[1727249363369,0.439089,63862.0,63861.0,0.2441431]
[1727249363566,0.0768,63864.0,63863.0,0.078288]
[1727249363771,0.4376,63864.0,63863.0,0.078288]
[1727249364076,0.4376,63864.0,63863.0,0.25473901]
[1727249364377,0.4376,63864.0,63863.0,0.34473901]
[1727249365075,0.4376,63864.0,63863.0,0.34573901]
[1727249366265,0.4376,63864.0,63863.0,0.34673901]
[1727249366675,0.515887,63864.0,63863.0,0.25673901]
[1727249367569,0.155087,63864.0,63863.0,0.25673901]
[1727249367879,0.515887,63864.0,63863.0,0.25673901]
[1727249369480,0.155087,63864.0,63863.0,0.25673901]
[1727249369674,0.515887,63864.0,63863.0,0.25673901]
[1727249372186,0.59366871,63864.0,63863.0,0.25673901]
[1727249372376,0.23286871,63864.0,63863.0,0.25673901]
[1727249372772,0.515887,63864.0,63863.0,0.25673901]
[1727249373279,0.59366871,63864.0,63863.0,0.25673901]
[1727249375175,0.59366871,63864.0,63863.0,0.17845101]
[1727249377075,0.23286871,63864.0,63863.0,0.17845101]
[1727249377276,0.59366871,63864.0,63863.0,0.17845101]
[1727249377778,0.54126973,63864.0,63863.0,0.17845101]
[1727249377971,0.18046973,63864.0,63863.0,0.17845101]
[1727249378176,0.515887,63864.0,63863.0,0.17845101]
[1727249379385,0.54126974,63864.0,63863.0,0.17845101]
[1727249380979,0.18046974,63864.0,63863.0,0.17845101]
[1727249381180,0.54126974,63864.0,63863.0,0.17845101]
[1727249382280,0.18046974,63864.0,63863.0,0.17845101]
[1727249382482,0.54126974,63864.0,63863.0,0.17845101]
[1727249383077,0.54126976,63864.0,63863.0,0.17845101]
[1727249384185,0.27380782,63864.0,63863.0,0.17845101]
[1727249384381,0.63460782,63864.0,63863.0,0.17845101]
[1727249384980,0.27380782,63864.0,63863.0,0.17845101]
[1727249385287,0.54126976,63864.0,63863.0,0.17845101]
[1727249385994,0.63460782,63864.0,63863.0,0.17845101]
[1727249386380,0.54126976,63864.0,63863.0,0.17845101]
[1727249387293,0.63460782,63864.0,63863.0,0.17845101]
[1727249387591,0.46446976,63864.0,63863.0,0.17845101]
[1727249392493,0.46446975,63864.0,63863.0,0.17845101]
[1727249392892,0.46446975,63864.0,63863.0,0.2253468]
[1727249393885,0.10366975,63864.0,63863.0,0.2253468]
[1727249394087,0.46446975,63864.0,63863.0,0.2253468]
[1727249394596,0.10366975,63864.0,63863.0,0.2253468]
[1727249394993,0.46446975,63864.0,63863.0,0.2253468]
[1727249395993,0.55780781,63864.0,63863.0,0.17845101]
[1727249396498,0.55780782,63864.0,63863.0,0.17845101]
[1727249400593,0.46446976,63864.0,63863.0,0.3153468]
[1727249400795,0.46446976,63864.0,63863.0,0.26845101]
[1727249400998,0.46446936,63864.0,63863.0,0.26845101]
[1727249402203,0.46446936,63864.0,63863.0,0.34673901]
[1727249403002,0.46446936,63864.0,63863.0,0.002]
[1727249403003,1.01251636,63864.0,63863.0,0.002]
[1727249403205,1.01251636,63864.0,63856.0,0.04698824]
[1727249403206,0.078293,63859.0,63856.0,0.04698824]
[1727249403498,0.3608,63857.0,63847.0,0.04698824]
[1727249403705,0.43873331,63848.0,63847.0,0.12530507]
[1727249403892,0.3608,63848.0,63847.0,0.34958507]
[1727249404094,0.3608,63848.0,63847.0,0.39654373]
[1727249404294,0.42309746,63848.0,63847.0,0.39654373]
[1727249405105,0.3608,63848.0,63847.0,0.34958507]
[1727249405402,0.06229746,63849.0,63848.0,0.078307]
[1727249405645,0.078305,63850.0,63849.0,0.078305]
[1727249405901,0.078305,63850.0,63849.0,0.25632353]
[1727249406096,0.078305,63850.0,63849.0,0.30325857]
[1727249406498,0.078305,63850.0,63849.0,0.25632353]
[1727249407008,0.080305,63850.0,63849.0,0.25732353]
[1727249408307,0.082305,63850.0,63849.0,0.25832353]
[1727249409125,0.12900501,63850.0,63849.0,0.25832353]
[1727249410595,0.082305,63850.0,63849.0,0.25832353]
[1727249412008,0.082305,63850.0,63849.0,0.18001853]
[1727249412307,0.16061,63850.0,63849.0,0.18001853]
[1727249412918,0.23854331,63850.0,63849.0,0.18001853]
[1727249413105,0.16061,63850.0,63849.0,0.18001853]
[1727249413920,1.16826778,63850.0,63831.0,0.45076204]
[1727249414108,0.168326,63832.0,63831.0,0.04693504]
[1727249414302,0.078327,63831.0,63830.0,0.00234998]
[1727249414612,0.078327,63831.0,63830.0,0.16821957]
[1727249415915,0.079327,63831.0,63830.0,0.16921957]
[1727249417215,0.090327,63831.0,63830.0,0.17021957]
[1727249417803,0.451127,63831.0,63830.0,0.17021957]
[1727249418114,0.3728,63831.0,63830.0,0.33854857]
[1727249418317,0.3728,63831.0,63830.0,0.26021957]
[1727249418613,0.451127,63831.0,63830.0,0.17021957]
[1727249419221,0.541127,63831.0,63830.0,0.17021957]
[1727249421305,0.619454,63831.0,63830.0,0.17021957]
[1727249422321,0.451127,63831.0,63830.0,0.17021957]
[1727249423511,0.541127,63831.0,63830.0,0.17021957]
[1727249426319,0.619454,63831.0,63830.0,0.17021957]
[1727249427016,1.689454,63831.0,63830.0,0.00434998]
[1727249427419,1.73604266,63831.0,63830.0,0.00434998]
[1727249427619,1.689454,63831.0,63830.0,0.00434998]
[1727249427822,1.689454,63831.0,63830.0,0.002]
[1727249428322,1.089454,63831.0,63830.0,0.002]
[1727249428712,1.450254,63831.0,63830.0,0.002]
[1727249430221,2.050254,63831.0,63830.0,0.002]
[1727249430614,0.980254,63831.0,63830.0,0.002]
[1727249430923,2.050254,63831.0,63830.0,0.002]
[1727249431420,0.980254,63831.0,63830.0,0.002]
[1727249432413,1.450254,63831.0,63830.0,0.002]
[1727249432614,0.980254,63831.0,63830.0,0.002]
[1727249432822,1.450254,63831.0,63830.0,0.002]
[1727249433121,1.51247969,63831.0,63830.0,0.002]
[1727249433326,1.51247969,63831.0,63830.0,0.00028976]
[1727249433525,1.59080669,63831.0,63830.0,0.00028976]
[1727249433722,2.128581,63831.0,63830.0,0.00028976]
[1727249434021,2.128581,63831.0,63830.0,4.269e-05]
[1727249434219,3.628581,63831.0,63830.0,4.269e-05]
[1727249436520,3.550254,63831.0,63830.0,4.269e-05]
[1727249437130,3.628581,63831.0,63830.0,4.269e-05]
[1727249437427,3.70636311,63831.0,63830.0,4.269e-05]
[1727249438113,3.62803611,63831.0,63830.0,4.269e-05]
[1727249438320,3.02803611,63831.0,63830.0,4.269e-05]
[1727249438819,3.10636311,63831.0,63830.0,4.269e-05]
[1727249439017,2.63636311,63831.0,63830.0,4.269e-05]
[1727249439223,2.58398243,63831.0,63830.0,4.269e-05]
[1727249439423,2.50565543,63831.0,63830.0,4.269e-05]
[1727249440530,0.91565543,63831.0,63830.0,4.269e-05]
[1727249440831,1.00565543,63831.0,63830.0,4.269e-05]
[1727249441731,2.50565543,63831.0,63830.0,4.269e-05]
[1727249446635,2.50565338,63831.0,63830.0,4.269e-05]
[1727249454242,2.5742848,63831.0,63830.0,4.269e-05]
[1727249454440,1.8526848,63831.0,63830.0,4.269e-05]
[1727249454861,2.5742848,63831.0,63830.0,4.269e-05]
[1727249463343,2.5742848,63831.0,63830.0,2.69e-06]
[1727249463933,2.57434758,63831.0,63830.0,2.69e-06]
[1727249468244,2.40602058,63831.0,63830.0,2.69e-06]
[1727249468446,0.54522058,63831.0,63830.0,2.69e-06]
[1727249468648,0.56652631,63831.0,63830.0,2.69e-06]
[1727249472254,0.66004381,63831.0,63830.0,2.69e-06]
[1727249473253,0.66004183,63831.0,63830.0,2.69e-06]
[1727249473857,0.57004183,63831.0,63830.0,2.69e-06]
[1727249474053,0.39819733,63831.0,63830.0,0.25054796]
[1727249474253,0.3728,63831.0,63830.0,0.25054796]
[1727249475846,0.3728,63831.0,63830.0,0.29749996]
[1727249476155,0.4628,63831.0,63830.0,0.29749996]
[1727249476357,0.50951763,63831.0,63830.0,0.25054796]
[1727249478259,0.4628,63831.0,63830.0,0.25054796]
[1727249482259,0.012,63831.0,63830.0,0.25054796]
[1727249487067,0.102,63831.0,63830.0,0.25054796]
[1727249496372,0.102,63831.0,63830.0,0.29749996]
[1727249497071,0.102,63831.0,63830.0,0.25054796]
[1727249498380,0.14871763,63831.0,63830.0,0.25054796]
[1727249499278,0.102,63831.0,63830.0,0.25054796]
[1727249500605,0.012,63831.0,63830.0,0.25054796]
[1727249500880,0.012,63831.0,63830.0,0.31307568]
[1727249501076,0.05875128,63831.0,63830.0,0.25054796]
[1727249501264,0.012,63831.0,63830.0,0.25054796]
[1727249502179,0.012,63831.0,63830.0,0.31317113]
[1727249502481,0.012,63831.0,63830.0,0.25054796]
[1727249502680,0.012,63831.0,63830.0,0.31318768]
[1727249503083,0.012,63831.0,63830.0,0.25054796]
[1727249504677,0.012,63831.0,63830.0,0.34054796]
[1727249505882,0.012,63831.0,63830.0,0.25054796]
[1727249513690,0.102,63831.0,63830.0,0.25054796]
[1727249515883,0.1643295,63831.0,63830.0,0.25054796]
[1727249516399,0.102,63831.0,63830.0,0.25054796]
[1727249516583,0.1643295,63831.0,63830.0,0.25054796]
[1727249518194,0.4628,63831.0,63830.0,0.3132204]
[1727249519089,0.4628,63831.0,63830.0,0.25054796]
[1727249519691,0.619454,63831.0,63830.0,0.17221896]
[1727249519894,0.619454,63831.0,63830.0,2.69e-06]
[1727249519895,0.67765055,63831.0,63830.0,2.69e-06]
[1727249520413,0.078337,63823.0,63822.0,0.04700235]
[1727249520702,0.078342,63819.0,63818.0,0.04700235]
[1727249520991,0.078345,63817.0,63815.0,0.04700235]
[1727249521191,0.167973,63816.0,63815.0,0.04700235]
[1727249521587,0.15229571,63816.0,63815.0,0.16874891]
[1727249521993,0.15229571,63816.0,63813.0,0.16874891]
[1727249522181,0.15229571,63816.0,63812.0,0.078351]
[1727249522182,0.4508,63814.0,63812.0,0.078351]
[1727249522489,0.4508,63814.0,63813.0,0.17081128]
[1727249522691,0.529148,63814.0,63813.0,0.17081128]
[1727249522882,0.529148,63814.0,63807.0,0.17081128]
[1727249522883,0.078355,63809.0,63807.0,0.17081128]
[1727249523078,0.4285,63808.0,63804.0,0.00235069]
[1727249523283,0.078359,63805.0,63804.0,0.00235069]
[1727249523685,1.13235055,63805.0,63790.0,0.12987935]
[1727249523886,1.13235055,63805.0,63790.0,0.078377]
[1727249523887,0.09,63791.0,63790.0,0.078377]
[1727249524396,0.09,63791.0,63790.0,0.25715794]
[1727249524889,0.4508,63791.0,63790.0,0.17878094]
[1727249525390,0.594377,63791.0,63785.0,0.17369735]
[1727249525579,0.09,63786.0,63784.0,0.078385]
[1727249525804,0.09,63786.0,63785.0,0.17147537]
[1727249526380,0.14,63786.0,63785.0,0.17147537]
[1727249527395,0.14,63786.0,63785.0,0.17447537]
[1727249529396,0.5008,63789.0,63785.0,0.17447537]
[1727249530593,0.5008,63789.0,63785.0,0.25285937]
[1727249530798,0.5008,63789.0,63786.0,0.078382]
[1727249531299,0.5008,63789.0,63787.0,0.25479833]
[1727249531684,0.5008,63789.0,63785.0,0.003]
[1727249531685,0.14,63794.0,63791.0,0.078376]
[1727249532088,0.078374,63793.0,63792.0,0.1815336]
[1727249532427,0.078376,63792.0,63789.0,0.1815336]
[1727249532586,0.3608,63791.0,63789.0,0.1815336]
[1727249532788,0.439177,63791.0,63788.0,0.16951451]
[1727249533094,0.439177,63791.0,63787.0,0.078381]
[1727249533301,0.439177,63791.0,63788.0,0.16951451]
[1727249533891,0.441177,63791.0,63788.0,0.24789451]
[1727249534094,0.441177,63791.0,63788.0,0.16951451]
[1727249534291,0.3628,63791.0,63790.0,0.078378]
[1727249534500,0.3618,63791.0,63790.0,0.078378]
[1727249534694,0.3618,63791.0,63790.0,0.25307935]
[1727249534896,0.001,63791.0,63790.0,0.25307935]
[1727249535210,0.3618,63791.0,63790.0,0.25307935]
[1727249535917,0.3668,63791.0,63790.0,0.25307935]
[1727249536306,0.3658,63791.0,63790.0,0.25307935]
[1727249536498,0.3688,63791.0,63790.0,0.25307935]
[1727249544805,0.3688,63791.0,63790.0,0.25440588]
[1727249545706,0.008,63791.0,63790.0,0.25440588]
[1727249548914,0.0037,63796.0,63790.0,1.33630788]
[1727249549111,0.0037,63800.0,63795.0,0.4508]
[1727249549303,0.0037,63807.0,63801.0,0.09]
[1727249549519,0.13661133,63811.0,63809.0,0.078354]
[1727249549703,0.13661133,63811.0,63810.0,0.00132653]
[1727249549910,0.13661133,63811.0,63810.0,0.17366622]
[1727249550114,0.09,63811.0,63810.0,0.17366622]
[1727249550314,0.14,63811.0,63810.0,0.17366622]
[1727249550711,0.218352,63811.0,63810.0,0.17366622]
[1727249550911,0.220352,63811.0,63810.0,0.17366622]
[1727249551319,0.26696333,63811.0,63810.0,0.17366622]
[1727249552406,0.26696333,63811.0,63810.0,0.17666622]
[1727249552611,0.26596333,63811.0,63810.0,0.18266622]
[1727249553319,0.218352,63811.0,63810.0,0.17666622]
[1727249553513,0.26501348,63811.0,63810.0,0.17666622]
[1727249553816,0.218352,63811.0,63810.0,0.17666622]
[1727249554013,0.657504,63811.0,63810.0,0.00132653]
[1727249554316,0.582152,63811.0,63810.0,0.00132653]
[1727249555009,0.579152,63811.0,63810.0,0.00132653]
[1727249555209,0.583152,63811.0,63810.0,0.00132653]
[1727249556237,0.592152,63811.0,63810.0,0.00232653]
[1727249556819,0.670504,63811.0,63810.0,0.00232653]
[1727249557119,1.225637,63811.0,63810.0,0.00332653]
[1727249557919,0.755477,63811.0,63810.0,0.00332653]
[1727249558146,0.756477,63811.0,63810.0,0.00332653]
[1727249558621,0.678504,63811.0,63810.0,0.00332653]
[1727249558815,0.679504,63811.0,63810.0,0.00332653]
[1727249559012,1.040304,63811.0,63810.0,0.00332653]
[1727249559225,0.961952,63811.0,63810.0,0.00332653]
[1727249559408,0.949952,63811.0,63810.0,0.00232653]
[1727249559717,0.960952,63811.0,63810.0,0.00332653]
[1727249559928,0.590152,63811.0,63810.0,0.17677865]
[1727249560220,0.50480756,63811.0,63810.0,0.17777865]
[1727249560412,0.458152,63811.0,63810.0,0.17777865]
[1727249560605,0.3798,63811.0,63810.0,0.25613165]
[1727249561011,0.3608,63811.0,63810.0,0.25513165]
[1727249561217,0.3828,63811.0,63810.0,0.25613165]
[1727249561922,0.460152,63811.0,63810.0,0.25613165]
[1727249562732,0.458152,63811.0,63810.0,0.25613165]
[1727249563410,0.449152,63811.0,63810.0,0.25513165]
[1727249563617,0.457152,63811.0,63810.0,0.25613165]